[Event "Late-Titled-Tuesday-Blitz-June-04-2024"]
[Site "Chess.com"]
[Date "2024.06.04"]
[Round "10"]
[White "Cuchulin"]
[Black "egnfanclub"]
[Result "0-1"]
[WhiteElo "2267"]
[BlackElo "2348"]
[TimeControl "180+1"]
[EndTime "15:55:10 PDT"]
[Termination "egnfanclub won on time"]

1. d4 {[%clk 0:03:00.9]} 1... d5 {[%clk 0:02:59.8]} 2. Bf4 {[%clk 0:03:00.8]}
2... Nf6 {[%clk 0:02:59.3]} 3. e3 {[%clk 0:03:01.2]} 3... Bf5 {[%clk 0:02:59.3]}
4. Nf3 {[%clk 0:03:01.3]} 4... e6 {[%clk 0:02:59.5]} 5. Bd3 {[%clk 0:03:01.7]}
5... Bg6 {[%clk 0:02:57.5]} 6. O-O {[%clk 0:03:00]} 6... Nbd7 {[%clk 0:02:52.9]}
7. Nbd2 {[%clk 0:02:56.1]} 7... Be7 {[%clk 0:02:47.1]} 8. Ne5 {[%clk 0:02:55.9]}
8... Nh5 {[%clk 0:02:41.9]} 9. Nxg6 {[%clk 0:02:38.8]} 9... hxg6 {[%clk
0:02:42.8]} 10. Be5 {[%clk 0:02:38.8]} 10... c5 {[%clk 0:02:18.9]} 11. c3 {[%clk
0:02:22.8]} 11... Nhf6 {[%clk 0:02:15.5]} 12. Bg3 {[%clk 0:02:21.1]} 12... Nh5
{[%clk 0:02:10.4]} 13. Qg4 {[%clk 0:02:13.2]} 13... Ndf6 {[%clk 0:02:03.5]} 14.
Qf3 {[%clk 0:02:06.3]} 14... c4 {[%clk 0:01:55.1]} 15. Bc2 {[%clk 0:02:05.7]}
15... Nxg3 {[%clk 0:01:42.5]} 16. Qxg3 {[%clk 0:02:02.5]} 16... b5 {[%clk
0:01:29.5]} 17. f4 {[%clk 0:02:01.9]} 17... a5 {[%clk 0:01:23.4]} 18. e4 {[%clk
0:02:01.2]} 18... dxe4 {[%clk 0:01:05]} 19. Nxe4 {[%clk 0:02:00.4]} 19... Nd5
{[%clk 0:00:59.3]} 20. Rae1 {[%clk 0:01:57.2]} 20... Bh4 {[%clk 0:00:58.7]} 21.
Qf3 {[%clk 0:01:50.9]} 21... Bxe1 {[%clk 0:00:58.3]} 22. Rxe1 {[%clk 0:01:51.8]}
22... O-O {[%clk 0:00:51.5]} 23. Ng5 {[%clk 0:01:41.9]} 23... Nf6 {[%clk
0:00:33.1]} 24. Qh3 {[%clk 0:01:28.3]} 24... b4 {[%clk 0:00:31.6]} 25. Qh4
{[%clk 0:01:19.3]} 25... Re8 {[%clk 0:00:31.4]} 26. Re3 {[%clk 0:01:16.5]} 26...
Kf8 {[%clk 0:00:29.4]} 27. Qh8+ {[%clk 0:01:12.2]} 27... Ke7 {[%clk 0:00:26.3]}
28. Qxg7 {[%clk 0:01:12.1]} 28... Rf8 {[%clk 0:00:26.6]} 29. Rxe6+ {[%clk
0:01:08.5]} 29... Kd7 {[%clk 0:00:26.7]} 30. Rxf6 {[%clk 0:01:04.4]} 30... Qe7
{[%clk 0:00:24.3]} 31. Rxf7 {[%clk 0:00:55.3]} 31... Rxf7 {[%clk 0:00:24.5]} 32.
Qxf7 {[%clk 0:00:55.5]} 32... Rf8 {[%clk 0:00:20.5]} 33. Ba4+ {[%clk 0:00:25.9]}
33... Kd6 {[%clk 0:00:20.8]} 34. Qxg6+ {[%clk 0:00:25.1]} 34... Kc7 {[%clk
0:00:15.8]} 35. Qc6+ {[%clk 0:00:23.9]} 35... Kb8 {[%clk 0:00:16]} 36. Qb6+
{[%clk 0:00:22.8]} 36... Kc8 {[%clk 0:00:15.3]} 37. Qa6+ {[%clk 0:00:15.4]}
37... Kb8 {[%clk 0:00:15.3]} 38. Qb5+ {[%clk 0:00:15.4]} 38... Kc8 {[%clk
0:00:12]} 39. Qxc4+ {[%clk 0:00:15.3]} 39... Kb8 {[%clk 0:00:11.5]} 40. Ne6
{[%clk 0:00:03]} 40... Rf6 {[%clk 0:00:10]} 41. Qb5+ {[%clk 0:00:01.3]} 41...
Kc8 {[%clk 0:00:10.3]} 42. Qc6+ {[%clk 0:00:01.2]} 42... Kb8 {[%clk 0:00:09.9]}
43. Qb6+ {[%clk 0:00:01.2]} 43... Kc8 {[%clk 0:00:10.3]} 0-1

[Event "Late-Titled-Tuesday-Blitz-June-04-2024"]
[Site "Chess.com"]
[Date "2024.06.04"]
[Round "10"]
[White "Kostukov_Alex"]
[Black "zacachess"]
[Result "1-0"]
[WhiteElo "2316"]
[BlackElo "2491"]
[TimeControl "180+1"]
[EndTime "15:55:13 PDT"]
[Termination "Kostukov_Alex won on time"]

1. g3 {[%clk 0:03:00.9]} 1... e5 {[%clk 0:02:59.1]} 2. c4 {[%clk 0:03:00.2]}
2... Nf6 {[%clk 0:02:58.4]} 3. Bg2 {[%clk 0:02:59.9]} 3... c6 {[%clk 0:02:51.6]}
4. a3 {[%clk 0:02:58.2]} 4... d5 {[%clk 0:02:50.4]} 5. cxd5 {[%clk 0:02:59.1]}
5... cxd5 {[%clk 0:02:51.3]} 6. d4 {[%clk 0:02:59.6]} 6... e4 {[%clk 0:02:50.3]}
7. Bg5 {[%clk 0:02:59.7]} 7... Be7 {[%clk 0:02:49.7]} 8. Nc3 {[%clk 0:02:59.5]}
8... O-O {[%clk 0:02:43.5]} 9. Nh3 {[%clk 0:02:59.4]} 9... Nc6 {[%clk
0:02:38.7]} 10. Nf4 {[%clk 0:02:58.8]} 10... Be6 {[%clk 0:02:26.8]} 11. O-O
{[%clk 0:02:57.6]} 11... Qd7 {[%clk 0:02:18.6]} 12. e3 {[%clk 0:02:56.6]} 12...
h6 {[%clk 0:02:07]} 13. Bxf6 {[%clk 0:02:56.4]} 13... Bxf6 {[%clk 0:02:07.9]}
14. f3 {[%clk 0:02:56.9]} 14... exf3 {[%clk 0:01:36.6]} 15. Qxf3 {[%clk
0:02:57.8]} 15... Ne7 {[%clk 0:01:28.7]} 16. Ncxd5 {[%clk 0:02:50.5]} 16... Nxd5
{[%clk 0:01:18.8]} 17. Nxd5 {[%clk 0:02:51.4]} 17... Bd8 {[%clk 0:01:16]} 18.
Rae1 {[%clk 0:02:21.4]} 18... Rc8 {[%clk 0:01:13]} 19. Nf4 {[%clk 0:02:15.8]}
19... b6 {[%clk 0:01:10.8]} 20. Nxe6 {[%clk 0:01:47.8]} 20... Qxe6 {[%clk
0:01:11.7]} 21. Re2 {[%clk 0:01:38.3]} 21... Bg5 {[%clk 0:01:04.5]} 22. h4
{[%clk 0:01:34.8]} 22... Bf6 {[%clk 0:01:04.3]} 23. Kh2 {[%clk 0:01:32]} 23...
Qd6 {[%clk 0:01:03.2]} 24. Qg4 {[%clk 0:01:12]} 24... Rc7 {[%clk 0:00:45.4]} 25.
Be4 {[%clk 0:01:10.9]} 25... g6 {[%clk 0:00:32.6]} 26. Ref2 {[%clk 0:01:00]}
26... Bg7 {[%clk 0:00:30.7]} 27. h5 {[%clk 0:00:54.9]} 27... f5 {[%clk
0:00:26.9]} 28. Bxf5 {[%clk 0:00:21.7]} 28... gxf5 {[%clk 0:00:25]} 29. Rxf5
{[%clk 0:00:22.1]} 29... Rxf5 {[%clk 0:00:24.4]} 30. Rxf5 {[%clk 0:00:22]} 30...
Rc2+ {[%clk 0:00:19.5]} 31. Kh3 {[%clk 0:00:21.4]} 31... Qe7 {[%clk 0:00:18.3]}
32. Qf3 {[%clk 0:00:16.4]} 32... Rc8 {[%clk 0:00:16.4]} 33. d5 {[%clk
0:00:14.6]} 33... Rf8 {[%clk 0:00:16.4]} 34. e4 {[%clk 0:00:14.2]} 34... Rxf5
{[%clk 0:00:15.9]} 35. Qxf5 {[%clk 0:00:15.1]} 35... Qf6 {[%clk 0:00:15.9]} 36.
Qc8+ {[%clk 0:00:14.5]} 36... Kh7 {[%clk 0:00:15.8]} 37. Qe8 {[%clk 0:00:14.4]}
37... Qe5 {[%clk 0:00:15.5]} 38. Qg6+ {[%clk 0:00:12.8]} 38... Kg8 {[%clk
0:00:14.8]} 39. d6 {[%clk 0:00:13.5]} 39... Qf6 {[%clk 0:00:12.6]} 40. d7 {[%clk
0:00:10.7]} 40... Qxg6 {[%clk 0:00:09.3]} 41. d8=Q+ {[%clk 0:00:09.2]} 1-0

[Event "Late-Titled-Tuesday-Blitz-June-04-2024"]
[Site "Chess.com"]
[Date "2024.06.04"]
[Round "10"]
[White "ncofre98"]
[Black "garfield_pg"]
[Result "0-1"]
[WhiteElo "2589"]
[BlackElo "2480"]
[TimeControl "180+1"]
[EndTime "15:55:14 PDT"]
[Termination "garfield_pg won by checkmate"]

1. e4 {[%clk 0:03:00.9]} 1... c5 {[%clk 0:03:00.5]} 2. Nf3 {[%clk 0:03:00.8]}
2... Nc6 {[%clk 0:03:00.5]} 3. Bb5 {[%clk 0:02:59.3]} 3... g6 {[%clk 0:03:00.3]}
4. O-O {[%clk 0:02:58.8]} 4... Bg7 {[%clk 0:03:00]} 5. Re1 {[%clk 0:02:58.4]}
5... e5 {[%clk 0:02:57.8]} 6. c3 {[%clk 0:02:54.5]} 6... Nge7 {[%clk 0:02:54.8]}
7. Na3 {[%clk 0:02:40.9]} 7... O-O {[%clk 0:02:49.4]} 8. Nc4 {[%clk 0:02:40.7]}
8... d6 {[%clk 0:02:45]} 9. Ne3 {[%clk 0:02:36]} 9... h6 {[%clk 0:02:36.7]} 10.
d3 {[%clk 0:02:30.1]} 10... Be6 {[%clk 0:02:34.4]} 11. Bc4 {[%clk 0:02:29.1]}
11... Qd7 {[%clk 0:02:26.4]} 12. Bd5 {[%clk 0:02:20.6]} 12... Kh7 {[%clk
0:02:23.3]} 13. Qb3 {[%clk 0:02:09]} 13... Bxd5 {[%clk 0:02:00.3]} 14. exd5
{[%clk 0:01:50.8]} 14... Nd8 {[%clk 0:01:47.1]} 15. d4 {[%clk 0:01:33.5]} 15...
cxd4 {[%clk 0:01:42.4]} 16. cxd4 {[%clk 0:01:33.3]} 16... e4 {[%clk 0:01:43]}
17. Nd2 {[%clk 0:01:32]} 17... f5 {[%clk 0:01:43.4]} 18. f3 {[%clk 0:01:14.7]}
18... f4 {[%clk 0:01:34.9]} 19. Nec4 {[%clk 0:01:14.6]} 19... e3 {[%clk
0:01:34.9]} 20. Ne4 {[%clk 0:01:14.3]} 20... Nf7 {[%clk 0:01:23.3]} 21. Qa3
{[%clk 0:00:52.6]} 21... Rfd8 {[%clk 0:01:12.4]} 22. b3 {[%clk 0:00:51]} 22...
Nxd5 {[%clk 0:01:06.4]} 23. Bb2 {[%clk 0:00:50]} 23... b5 {[%clk 0:00:57.8]} 24.
Na5 {[%clk 0:00:46.8]} 24... Rac8 {[%clk 0:00:54.6]} 25. Rac1 {[%clk 0:00:35.5]}
25... b4 {[%clk 0:00:33.5]} 26. Qa4 {[%clk 0:00:34.9]} 26... Qxa4 {[%clk
0:00:33.8]} 27. bxa4 {[%clk 0:00:35.8]} 27... Ng5 {[%clk 0:00:22.1]} 28. Nc6
{[%clk 0:00:28.5]} 28... Rd7 {[%clk 0:00:19.5]} 29. Na5 {[%clk 0:00:12.5]} 29...
Rxc1 {[%clk 0:00:15.6]} 30. Rxc1 {[%clk 0:00:12]} 30... Nxe4 {[%clk 0:00:16.2]}
31. fxe4 {[%clk 0:00:12.9]} 31... Nf6 {[%clk 0:00:15.4]} 32. Kf1 {[%clk
0:00:09.3]} 32... Nxe4 {[%clk 0:00:15.3]} 33. Ke2 {[%clk 0:00:09.9]} 33... d5
{[%clk 0:00:09.1]} 34. Nc6 {[%clk 0:00:09]} 34... g5 {[%clk 0:00:08.3]} 35. Nxb4
{[%clk 0:00:08.5]} 35... g4 {[%clk 0:00:07]} 36. Nd3 {[%clk 0:00:07.7]} 36...
Rf7 {[%clk 0:00:06.1]} 37. Ne1 {[%clk 0:00:07.1]} 37... h5 {[%clk 0:00:06.1]}
38. Rc6 {[%clk 0:00:03.8]} 38... Bh6 {[%clk 0:00:06]} 39. Rc8 {[%clk 0:00:02.3]}
39... Nd2 {[%clk 0:00:06.5]} 40. Re8 {[%clk 0:00:01.5]} 40... f3+ {[%clk
0:00:07]} 41. gxf3 {[%clk 0:00:02]} 41... gxf3+ {[%clk 0:00:07.2]} 42. Nxf3
{[%clk 0:00:02.5]} 42... Nxf3 {[%clk 0:00:07.2]} 43. Re6 {[%clk 0:00:02.1]}
43... Ng1+ {[%clk 0:00:07.4]} 44. Ke1 {[%clk 0:00:02.4]} 44... e2 {[%clk
0:00:08]} 45. Bc3 {[%clk 0:00:02.7]} 45... Bg5 {[%clk 0:00:06.3]} 46. Bd2 {[%clk
0:00:02.5]} 46... Bh4# {[%clk 0:00:06.5]} 0-1

[Event "Late-Titled-Tuesday-Blitz-June-04-2024"]
[Site "Chess.com"]
[Date "2024.06.04"]
[Round "10"]
[White "Supelyel"]
[Black "KChor05"]
[Result "0-1"]
[WhiteElo "2418"]
[BlackElo "2622"]
[TimeControl "180+1"]
[EndTime "15:55:17 PDT"]
[Termination "KChor05 won on time"]

1. c4 {[%clk 0:02:54.7]} 1... Nf6 {[%clk 0:02:58.9]} 2. Nc3 {[%clk 0:02:53.1]}
2... g6 {[%clk 0:02:59.8]} 3. g3 {[%clk 0:02:53]} 3... d5 {[%clk 0:02:58.5]} 4.
cxd5 {[%clk 0:02:52.9]} 4... Nxd5 {[%clk 0:02:58.5]} 5. Bg2 {[%clk 0:02:53.3]}
5... Nb6 {[%clk 0:02:55.2]} 6. d4 {[%clk 0:02:53.4]} 6... Bg7 {[%clk 0:02:55]}
7. Nf3 {[%clk 0:02:53.8]} 7... O-O {[%clk 0:02:53.8]} 8. O-O {[%clk 0:02:53.9]}
8... c6 {[%clk 0:02:54]} 9. b3 {[%clk 0:02:49.9]} 9... Bg4 {[%clk 0:02:50.4]}
10. e3 {[%clk 0:02:49.6]} 10... c5 {[%clk 0:02:45.9]} 11. Bb2 {[%clk 0:02:38.1]}
11... cxd4 {[%clk 0:02:42.2]} 12. Nb5 {[%clk 0:02:28.9]} 12... Nc6 {[%clk
0:02:25.4]} 13. Nbxd4 {[%clk 0:02:22.6]} 13... Nxd4 {[%clk 0:02:22.9]} 14. exd4
{[%clk 0:02:20.5]} 14... Nd5 {[%clk 0:02:17.1]} 15. h3 {[%clk 0:02:19.4]} 15...
Bxf3 {[%clk 0:02:10]} 16. Qxf3 {[%clk 0:02:18.7]} 16... e6 {[%clk 0:02:04.2]}
17. Rfc1 {[%clk 0:02:10]} 17... Qb6 {[%clk 0:02:00.9]} 18. Qd3 {[%clk
0:01:52.5]} 18... Rfd8 {[%clk 0:01:56.3]} 19. a3 {[%clk 0:01:38.6]} 19... h5
{[%clk 0:01:36.6]} 20. Rc5 {[%clk 0:01:27.8]} 20... Nf4 {[%clk 0:01:27.6]} 21.
Qc4 {[%clk 0:01:00.9]} 21... Bxd4 {[%clk 0:01:15.2]} 22. Rb5 {[%clk 0:00:45.9]}
22... Bxf2+ {[%clk 0:01:00.6]} 23. Kh1 {[%clk 0:00:21.3]} 23... Nxg2 {[%clk
0:00:48.8]} 24. Rxb6 {[%clk 0:00:21]} 24... Bxb6 {[%clk 0:00:49.7]} 25. Kxg2
{[%clk 0:00:20.6]} 25... Rd2+ {[%clk 0:00:48.3]} 26. Kf3 {[%clk 0:00:20.8]}
26... Rxb2 {[%clk 0:00:42.1]} 27. Rd1 {[%clk 0:00:20.6]} 27... Rf2+ {[%clk
0:00:36.8]} 28. Ke4 {[%clk 0:00:20.1]} 28... Rg2 {[%clk 0:00:25.2]} 29. Rd3
{[%clk 0:00:18.8]} 29... Rf8 {[%clk 0:00:22.3]} 30. b4 {[%clk 0:00:17.5]} 30...
Re2+ {[%clk 0:00:22]} 31. Kf3 {[%clk 0:00:16.9]} 31... Re5 {[%clk 0:00:22.6]}
32. a4 {[%clk 0:00:16.1]} 32... Rf5+ {[%clk 0:00:22.5]} 33. Ke2 {[%clk
0:00:15.9]} 33... Rf2+ {[%clk 0:00:22]} 34. Kd1 {[%clk 0:00:16.3]} 34... Rh2
{[%clk 0:00:21.9]} 35. a5 {[%clk 0:00:16.6]} 35... Bf2 {[%clk 0:00:21.4]} 36. h4
{[%clk 0:00:16.7]} 36... Rg2 {[%clk 0:00:20.5]} 37. Qc3 {[%clk 0:00:17.3]} 37...
Kh7 {[%clk 0:00:19.2]} 38. Rf3 {[%clk 0:00:17.3]} 38... a6 {[%clk 0:00:19.3]}
39. Qc7 {[%clk 0:00:15.4]} 39... Kg7 {[%clk 0:00:16.2]} 40. Qxb7 {[%clk
0:00:14.1]} 40... Bxg3 {[%clk 0:00:15.8]} 41. Rxf7+ {[%clk 0:00:11.3]} 41...
Rxf7 {[%clk 0:00:15.4]} 42. Qxg2 {[%clk 0:00:12.2]} 42... Bxh4 {[%clk
0:00:15.6]} 43. Qe2 {[%clk 0:00:10.9]} 43... Rd7+ {[%clk 0:00:13.6]} 44. Kc2
{[%clk 0:00:10.8]} 44... Rc7+ {[%clk 0:00:13.2]} 45. Kb3 {[%clk 0:00:10.6]}
45... Bf6 {[%clk 0:00:13]} 46. Qxe6 {[%clk 0:00:10.7]} 46... h4 {[%clk
0:00:13.4]} 47. Qb6 {[%clk 0:00:07.3]} 47... Rc3+ {[%clk 0:00:13.1]} 48. Ka4
{[%clk 0:00:07.2]} 48... h3 {[%clk 0:00:14]} 49. b5 {[%clk 0:00:04.5]} 49... h2
{[%clk 0:00:13]} 50. Qc7+ {[%clk 0:00:04.8]} 50... Rxc7 {[%clk 0:00:12.4]} 0-1

[Event "Late-Titled-Tuesday-Blitz-June-04-2024"]
[Site "Chess.com"]
[Date "2024.06.04"]
[Round "10"]
[White "IlyaGrigorjev"]
[Black "Jospem"]
[Result "0-1"]
[WhiteElo "2867"]
[BlackElo "3043"]
[TimeControl "180+1"]
[EndTime "15:55:18 PDT"]
[Termination "Jospem won by resignation"]

1. d4 {[%clk 0:03:00.9]} 1... Nf6 {[%clk 0:03:00.2]} 2. c4 {[%clk 0:03:00.8]}
2... e6 {[%clk 0:03:00.5]} 3. Nc3 {[%clk 0:03:01.2]} 3... Bb4 {[%clk 0:02:59.9]}
4. e3 {[%clk 0:03:00.8]} 4... O-O {[%clk 0:03:00.1]} 5. Bd3 {[%clk 0:02:57.9]}
5... d5 {[%clk 0:02:59.1]} 6. a3 {[%clk 0:02:58.2]} 6... Be7 {[%clk 0:02:58.3]}
7. cxd5 {[%clk 0:02:57.4]} 7... exd5 {[%clk 0:02:58.5]} 8. Nge2 {[%clk
0:02:54.7]} 8... Re8 {[%clk 0:02:55.6]} 9. O-O {[%clk 0:02:54.7]} 9... Nbd7
{[%clk 0:02:55.2]} 10. Rb1 {[%clk 0:02:51.7]} 10... Nf8 {[%clk 0:02:42.7]} 11.
b4 {[%clk 0:02:47.5]} 11... c6 {[%clk 0:02:35.1]} 12. f3 {[%clk 0:02:46.3]}
12... Ne6 {[%clk 0:02:35.2]} 13. Bd2 {[%clk 0:02:16.8]} 13... a5 {[%clk
0:02:28.1]} 14. Qc2 {[%clk 0:02:12.1]} 14... axb4 {[%clk 0:02:26.5]} 15. axb4
{[%clk 0:02:13]} 15... g6 {[%clk 0:02:24.6]} 16. Be1 {[%clk 0:02:02.4]} 16...
Nh5 {[%clk 0:02:20.2]} 17. Bf2 {[%clk 0:01:56.3]} 17... Bf8 {[%clk 0:02:17.9]}
18. Ng3 {[%clk 0:01:27.1]} 18... Nf6 {[%clk 0:02:15.9]} 19. Nge2 {[%clk
0:01:25.9]} 19... Bg7 {[%clk 0:02:14.4]} 20. h3 {[%clk 0:01:25.2]} 20... Nh5
{[%clk 0:02:09.8]} 21. g4 {[%clk 0:01:22]} 21... Nf6 {[%clk 0:02:08]} 22. Kg2
{[%clk 0:01:20.2]} 22... Ng5 {[%clk 0:01:52]} 23. Nf4 {[%clk 0:01:07]} 23... Qd6
{[%clk 0:01:29.1]} 24. b5 {[%clk 0:00:55.7]} 24... Bd7 {[%clk 0:01:22.9]} 25.
bxc6 {[%clk 0:00:56]} 25... Bxc6 {[%clk 0:01:22.7]} 26. h4 {[%clk 0:00:49.7]}
26... Ne6 {[%clk 0:01:22.6]} 27. Bg3 {[%clk 0:00:50.3]} 27... Qd7 {[%clk
0:01:17.8]} 28. h5 {[%clk 0:00:42.8]} 28... Nf8 {[%clk 0:00:55.6]} 29. Qd2
{[%clk 0:00:33.5]} 29... Ra3 {[%clk 0:00:46.9]} 30. Ra1 {[%clk 0:00:28.9]} 30...
Rxa1 {[%clk 0:00:36.4]} 31. Rxa1 {[%clk 0:00:29.8]} 31... Ne6 {[%clk 0:00:36.7]}
32. Rh1 {[%clk 0:00:25.7]} 32... Qe7 {[%clk 0:00:27.8]} 33. Nxe6 {[%clk
0:00:18.1]} 33... Qxe6 {[%clk 0:00:27.8]} 34. Bf4 {[%clk 0:00:17.8]} 34... Qd7
{[%clk 0:00:19.1]} 35. Be5 {[%clk 0:00:14.5]} 35... Nxg4 {[%clk 0:00:12.8]} 36.
fxg4 {[%clk 0:00:15.4]} 36... Bxe5 {[%clk 0:00:12.4]} 37. dxe5 {[%clk
0:00:14.3]} 37... d4+ {[%clk 0:00:10.8]} 38. Ne4 {[%clk 0:00:10.1]} 38... Qxg4+
{[%clk 0:00:08.1]} 39. Kf2 {[%clk 0:00:10.7]} 39... Bxe4 {[%clk 0:00:08.4]} 40.
Bxe4 {[%clk 0:00:06.3]} 40... Qxe4 {[%clk 0:00:09.3]} 41. Rh3 {[%clk 0:00:06.1]}
41... d3 {[%clk 0:00:04.7]} 42. hxg6 {[%clk 0:00:04.2]} 42... hxg6 {[%clk
0:00:05.6]} 43. e6 {[%clk 0:00:03.6]} 43... Qxe6 {[%clk 0:00:05.5]} 44. Rf3
{[%clk 0:00:03.5]} 44... Rd8 {[%clk 0:00:03.6]} 45. Qc3 {[%clk 0:00:03.6]} 45...
d2 {[%clk 0:00:03.1]} 46. Rh3 {[%clk 0:00:03.4]} 46... Qxh3 {[%clk 0:00:03.4]}
47. Qg7+ {[%clk 0:00:03.4]} 47... Kxg7 {[%clk 0:00:03.7]} 0-1

[Event "Late-Titled-Tuesday-Blitz-June-04-2024"]
[Site "Chess.com"]
[Date "2024.06.04"]
[Round "10"]
[White "stollenmonster"]
[Black "HansOnTwitch"]
[Result "0-1"]
[WhiteElo "2885"]
[BlackElo "3137"]
[TimeControl "180+1"]
[EndTime "15:55:18 PDT"]
[Termination "HansOnTwitch won by resignation"]

1. e4 {[%clk 0:03:00.9]} 1... c6 {[%clk 0:02:59.5]} 2. d4 {[%clk 0:03:00.1]}
2... d5 {[%clk 0:03:00.2]} 3. e5 {[%clk 0:03:00.7]} 3... Bf5 {[%clk 0:03:00.3]}
4. Ne2 {[%clk 0:03:00.9]} 4... e6 {[%clk 0:02:58]} 5. Ng3 {[%clk 0:03:01.4]}
5... Bg6 {[%clk 0:02:58.2]} 6. h4 {[%clk 0:03:02]} 6... h6 {[%clk 0:02:56.7]} 7.
h5 {[%clk 0:03:01.8]} 7... Bh7 {[%clk 0:02:57.3]} 8. Bd3 {[%clk 0:03:02.6]} 8...
Bxd3 {[%clk 0:02:57.5]} 9. cxd3 {[%clk 0:03:03.5]} 9... c5 {[%clk 0:02:58.4]}
10. dxc5 {[%clk 0:03:04.4]} 10... Bxc5 {[%clk 0:02:56.1]} 11. d4 {[%clk
0:03:05.3]} 11... Bb6 {[%clk 0:02:54.7]} 12. Qg4 {[%clk 0:03:04.6]} 12... Kf8
{[%clk 0:02:54.7]} 13. Be3 {[%clk 0:03:04.5]} 13... Nc6 {[%clk 0:02:54.4]} 14.
Nc3 {[%clk 0:03:04.8]} 14... Nge7 {[%clk 0:02:54.4]} 15. O-O {[%clk 0:03:04.4]}
15... Qd7 {[%clk 0:02:53.4]} 16. Rad1 {[%clk 0:03:04.9]} 16... Rc8 {[%clk
0:02:47]} 17. f4 {[%clk 0:03:03.2]} 17... Nf5 {[%clk 0:02:47.2]} 18. Nxf5 {[%clk
0:03:03]} 18... exf5 {[%clk 0:02:48.1]} 19. Qf3 {[%clk 0:03:01]} 19... Ne7
{[%clk 0:02:48.5]} 20. Bf2 {[%clk 0:03:01.2]} 20... Ba5 {[%clk 0:02:46.9]} 21.
Bh4 {[%clk 0:02:53.3]} 21... Bxc3 {[%clk 0:02:46.9]} 22. bxc3 {[%clk 0:02:54.2]}
22... b5 {[%clk 0:02:43.5]} 23. Qd3 {[%clk 0:02:51.4]} 23... Rc4 {[%clk
0:02:40.4]} 24. g4 {[%clk 0:02:51]} 24... g6 {[%clk 0:02:26.2]} 25. hxg6 {[%clk
0:02:08.1]} 25... Nxg6 {[%clk 0:02:22.2]} 26. Bf6 {[%clk 0:02:05.3]} 26... Rg8
{[%clk 0:02:22.7]} 27. Kh2 {[%clk 0:02:01.2]} 27... fxg4 {[%clk 0:02:14.2]} 28.
f5 {[%clk 0:01:58]} 28... Ne7 {[%clk 0:02:04]} 29. e6 {[%clk 0:01:53.5]} 29...
Qc6 {[%clk 0:01:57.8]} 30. Qe3 {[%clk 0:01:37.1]} 30... Rxc3 {[%clk 0:01:46.3]}
31. Bxe7+ {[%clk 0:01:10.5]} 31... Kxe7 {[%clk 0:01:37.6]} 32. f6+ {[%clk
0:01:09.9]} 32... Kd8 {[%clk 0:01:24.6]} 33. e7+ {[%clk 0:00:24.1]} 33... Kd7
{[%clk 0:01:16.3]} 34. Qe5 {[%clk 0:00:23.7]} 34... Qd6 {[%clk 0:01:11.2]} 35.
Rf5 {[%clk 0:00:19.6]} 35... Re3 {[%clk 0:01:01.7]} 36. Qxd6+ {[%clk 0:00:16.7]}
36... Kxd6 {[%clk 0:01:02.6]} 37. Re5 {[%clk 0:00:12.6]} 37... Rh3+ {[%clk
0:00:50.5]} 38. Kg2 {[%clk 0:00:11.9]} 38... Re8 {[%clk 0:00:51.4]} 39. Rc1
{[%clk 0:00:08.6]} 39... Rd3 {[%clk 0:00:49.6]} 40. Re2 {[%clk 0:00:05.4]} 40...
Rxd4 {[%clk 0:00:49.5]} 41. Rec2 {[%clk 0:00:03.9]} 41... Rc4 {[%clk 0:00:49.9]}
42. Rxc4 {[%clk 0:00:03.3]} 42... bxc4 {[%clk 0:00:49.7]} 43. Kg3 {[%clk
0:00:03.1]} 43... Ke6 {[%clk 0:00:49.6]} 44. Rf1 {[%clk 0:00:03.3]} 44... h5
{[%clk 0:00:49.8]} 45. Kh4 {[%clk 0:00:03.4]} 45... d4 {[%clk 0:00:48.4]} 46.
Kg5 {[%clk 0:00:03.9]} 46... d3 {[%clk 0:00:47.2]} 47. Re1+ {[%clk 0:00:04.3]}
47... Kd5 {[%clk 0:00:47.6]} 48. Kh6 {[%clk 0:00:04.6]} 48... d2 {[%clk
0:00:47]} 49. Rf1 {[%clk 0:00:03.3]} 49... c3 {[%clk 0:00:46.7]} 50. Kg7 {[%clk
0:00:03.9]} 50... Ke6 {[%clk 0:00:46.9]} 51. Rf4 {[%clk 0:00:02.5]} 51... d1=Q
{[%clk 0:00:46.2]} 52. Re4+ {[%clk 0:00:03.2]} 52... Kf5 {[%clk 0:00:46.7]} 53.
Kxf7 {[%clk 0:00:03.6]} 53... Qd7 {[%clk 0:00:46.7]} 54. Re1 {[%clk 0:00:03]}
54... g3 {[%clk 0:00:45.9]} 55. Rf1+ {[%clk 0:00:02.7]} 55... Kg4 {[%clk
0:00:46.3]} 56. Kg7 {[%clk 0:00:02.9]} 56... Rxe7+ {[%clk 0:00:45.7]} 57. fxe7
{[%clk 0:00:02.6]} 57... Qxe7+ {[%clk 0:00:46.6]} 0-1